Cogmind - Beta 9.2 @@@ ROGUE MODE // 2019.11.23 @ 13:28:44 Player: Aaron Result: Destroyed by G-34 Mercenary with Small Laser Performance ------------- Evolutions (0) 0 Regions Visited (1) 200 Robots Destroyed (11) 55 Value Destroyed (73) 73 Prototype IDs (0) 0 Alien Tech Used (0) 0 Bonus (0) 0 TOTAL SCORE: 328 Bonus ------- None Cogmind --------- Core Integrity 0/250 Matter 299/300 Energy 99/100 System Corruption 0% Temperature Cool (12) Movement Core (50) Location -10/Materials Parts ------- > --- POWER (1) -------- (None) > --- PROPULSION (2) --- (None) > --- UTILITY (2) ------ Seismic Analyzer > --- WEAPON (2) ------- (None) > --- INVENTORY (4) ---- Light Ion Engine Small Matter Pod (50) Peak State ------------ > --- POWER ------------ Ion Engine > --- PROPULSION ------- Wheel Wheel > --- UTILITY ---------- Improved Terrain Scanner Seismic Analyzer > --- WEAPON ----------- Small Laser Light Assault Rifle > --- INVENTORY -------- Light Ion Engine Compact Wheel [Rating: 8] Favorites ----------- Power Ion Engine Engine Ion Engine Propulsion Wheel Wheel Wheel Flight Unit Flight Unit Utility Seismic Analyzer Device Improved Terrain Scanner Processor Seismic Analyzer Weapon Light Assault Rifle Energy Gun Small Laser Ballistic Gun Light Assault Rifle Build | -11 -10 ------- Run | Scr Mat Slots Evolved . | . . Power . | . . Propulsion . | . . Utility . | . . Weapon . | . . Parts Attached 10 | 8 2 Power 1 | 1 . Engine 1 | 1 . Core . | . . Reactor . | . . Propulsion 5 | 3 2 Treads . | . . Leg . | . . Wheel 3 | 3 . Hover . | . . Flight 2 | . 2 Utility 2 | 2 . Device 1 | 1 . Storage . | . . Processor 1 | 1 . Hackware . | . . Protection . | . . Artifact . | . . Weapon 2 | 2 . Energy Gun 1 | 1 . Energy Cannon . | . . Ballistic Gun 1 | 1 . Ballistic Cannon . | . . Launcher . | . . Special Weapon . | . . Impact Weapon . | . . Slashing Weapon . | . . Piercing Weapon . | . . Special Melee Weapon . | . . Unidentified Prototypes . | . . Parts Lost 6 | . 6 Power 1 | . 1 Propulsion 2 | . 2 Utility 1 | . 1 Weapon 2 | . 2 Highest Loss Streak 6 | . 6 Average Slot Usage (%) 88 | . 88 Engine 12 | . 12 Wheel 16 | . 16 Flight 6 | . 6 Device 13 | . 13 Processor 14 | . 14 Energy Gun 11 | . 11 Ballistic Gun 12 | . 12 Naked Turns . | . . Heaviest Build 8 | 8 8 Greatest Support 26 | 26 20 Greatest Overweight (x) 2 | . 2 Average Overweight (x) . | . . Largest Inventory Capacity 4 | 4 4 Average Capacity 4 | 4 4 Most Carried 4 | 3 4 Average Carried 2 | 1 2 Final Capacity 4 | 4 4 Final Carried 3 | 3 2 Class Distribution -------------------- 83% | Mutant 16% | Scavenger-Mutant Dominant Class ---------------- Mutant | -10/Materials Resources | -11 -10 ----------- Run | Scr Mat Matter Collected 349 | 349 . Remotely . | . . Salvage Created 224 | 180 44 Parts 28 | 22 6 Haulers Intercepted . | . . Recyclers Shooed 1 | 1 . Parts Field Recycled . | . . Retrieved Matter . | . . Parts Self-Destructed . | . . Prevented . | . . Kills | -11 -10 ------- Run | Scr Mat Combat Hostiles Destroyed 3 | . 3 Guns 3 | . 3 Classes Destroyed 4 | 3 1 Worker 2 | 2 . Tunneler 5 | 5 . Recycler 1 | 1 . Swarmer 3 | . 3 Best Kill Streak 7 | 7 3 Combat Bots Only 3 | . 3 Max Kills in Single Turn 1 | 1 1 Gunslinging . | . . Exploded . | . . Melee . | . . Uniques/NPCs Destroyed . | . . Combat | -11 -10 -------- Run | Scr Mat Damage Taken 528 | . 528 Core 250 | . 250 Absorbed by Shields . | . . Core Remaining (%) 100 | 100 . Volleys Fired 30 | 19 11 Largest 2 | 2 2 Hottest 60 | 60 60 Shots Fired 59 | 38 21 Gun 59 | 38 21 Cannon . | . . Launcher . | . . Special . | . . Kinetic 30 | 19 11 Thermal 29 | 19 10 Explosive . | . . Electromagnetic . | . . Robot Hit Streak 15 | 15 6 Robot Miss Streak 2 | 2 2 Penetration Max . | . . Secondary Targets . | . . Shots Hit Robots 41 | 28 13 Core Hits 13 | 10 3 Critical Hits . | . . Critical Kills . | . . Critical Parts Destroyed . | . . Melee Attacks . | . . Impact . | . . Slashing . | . . Piercing . | . . Sneak Attacks . | . . Combat Hostiles . | . . Follow-up Attacks . | . . Damage Inflicted 397 | 267 130 Guns 397 | 267 130 Cannons . | . . Explosions . | . . Melee . | . . Ramming . | . . Kinetic 136 | 83 53 Thermal 261 | 184 77 Explosive . | . . Electromagnetic . | . . Impact . | . . Slashing . | . . Piercing . | . . Highest Corruption . | . . Average Corruption . | . . Corruption Purged . | . . Overload Shots . | . . Overflow Damage . | . . Projectiles . | . . Explosions . | . . Melee . | . . Knockbacks . | . . Impact . | . . Kinetic . | . . Secondary . | . . Self-Inflicted Damage . | . . Shots . | . . Rammed . | . . Targets Rammed . | . . Kicked . | . . Crushed . | . . Highest Temperature 60 | 60 60 Average Temperature 29 | 29 30 Received Heat Transfer 96 | . 96 Siege Activations . | . . Robots Corrupted . | . . Combat Hostiles . | . . Parts Fried . | . . Impact Corruptions . | . . Robots Melted . | . . Combat Hostiles . | . . Parts Melted . | . . Heat Transferred 600 | 425 175 Parts Sabotaged . | . . Parts Stolen . | . . Parts Stripped . | . . Power Chain Reactions . | . . Missiles Intercepted . | . . Alert | -11 -10 ------- Run | Scr Mat Peak Influence 156 | 40 156 Average Influence 53 | 17 68 Maximum Alert Level . | . . Low Security (%) 100 | 100 100 Level 1 . | . . Level 2 . | . . Level 3 . | . . Level 4 . | . . Level 5 . | . . High Security . | . . Max Security . | . . Squads Dispatched 4 | . 4 Investigation 1 | . 1 Extermination . | . . Reinforcement 3 | . 3 Assault . | . . Garrison . | . . Intercept . | . . Construction Impeded . | . . Haulers Reinforced . | . . Stealth | -11 -10 --------- Run | Scr Mat Distress Signals 1 | . 1 Communications Jammed . | . . Distress Signals . | . . Times Spotted 18 | . 18 Peak Tracking Total 10 | . 10 Tactical Retreats 2 | . 2 Traps | -11 -10 ------- Run | Scr Mat Traps Triggered 1 | . 1 Indirectly . | . . Trap Hack Attempts . | . . Triggered . | . . Disarmed . | . . Reprogrammed . | . . Reused . | . . Traps Extracted . | . . Installed . | . . Triggered . | . . Machines | -11 -10 ---------- Run | Scr Mat Machines Disabled . | . . Max in Single Turn . | . . Machines Sabotaged . | . . Garrisons Compromised . | . . Overloaded Fab Kills . | . . Fab Network Shutdowns . | . . Hacking | -11 -10 --------- Run | Scr Mat Machines Accessed 1 | . 1 Terminals 1 | . 1 Fabricators . | . . Repair Stations . | . . Recycling Units . | . . Scanalyzers . | . . Garrison Access . | . . Total Hacks 1 | . 1 Successful 1 | . 1 Failed . | . . Catastrophic . | . . Database Lockouts . | . . Manual . | . . Terminals 1 | . 1 Fabricators . | . . Repair Stations . | . . Recycling Units . | . . Scanalyzers . | . . Garrison Access . | . . Terminal Hacks 1 | . 1 Registered Components 1 | . 1 Fabricator Hacks . | . . Repair Station Hacks . | . . Recycling Unit Hacks . | . . Scanalyzer . | . . Garrison Access Hacks . | . . Unauthorized Hacks . | . . Terminals . | . . Fabricators . | . . Repair Stations . | . . Recycling Units . | . . Scanalyzers . | . . Garrison Access . | . . Data Cores Recovered . | . . Used . | . . Hacking Detections 1 | . 1 Full Trace Events . | . . Feedback Events . | . . Feedback Blocked . | . . Robot Schematics Acquired . | . . Robots Built . | . . Matter . | . . Time . | . . Total Robot Build Rating . | . . Part Schematics Acquired . | . . Parts Built . | . . Matter . | . . Time . | . . Total Part Build Rating . | . . Parts Repaired . | . . Time . | . . Parts Recycled . | . . Recycled Matter . | . . Retrieved Matter . | . . Retrieved Components . | . . Parts Scanalyzed . | . . Part Schematics Acquired . | . . Parts Damaged . | . . Bothacking | -11 -10 ------------ Run | Scr Mat Used RIF Installer . | . . Robots Hacked . | . . Non-combat . | . . Combat . | . . Robot Hacks Applied . | . . Relay Couplers Released . | . . Robots Rewired . | . . Allies Hacked . | . . Hacks Repelled . | . . Allies | -11 -10 -------- Run | Scr Mat Total Allies . | . . Largest Group . | . . Highest-Rated Group . | . . Highest-Rated Ally . | . . Total Orders . | . . Ally Attacks . | . . Total Damage . | . . Kills . | . . Allies Corrupted . | . . Allies Melted . | . . Intel | -11 -10 ------- Run | Scr Mat Robot Analysis Total . | . . Derelict Logs Recovered . | . . Drone Launches . | . . Drone Recoveries . | . . Exploration | -11 -10 ------------- Run | Scr Mat Turns Passed 389 | 120 269 Spaces Moved 304 | 63 241 Core 56 | 9 47 Treads . | . . Legs . | . . Wheels 112 | 54 58 Hover . | . . Flight 136 | . 136 Fastest Speed 37 | 50 37 Average Speed 61 | 77 57 Slowest Speed 150 | 90 150 Overloaded Moves . | . . Propulsion Burnouts . | . . Robots Hopped 1 | . 1 Cave-ins Triggered . | . . Exploration Rate (%) 21 | 2 40 Regions Visited 1 Branch Regions . Pre-discovered Areas . | . . Known Exits Taken . | . . Unknown Exits Taken 1 | 1 . Scrap Searched . | . . Spaces Dug . | . . Terrain Destroyed . | . . Melee . | . . Projectile . | . . AOE . | . . Actions | -11 -10 --------- Run | Scr Mat Total 451 | 99 352 Wait 94 | . 94 Move 301 | 62 239 Hop 1 | . 1 Pick Up 11 | 10 1 Fast Attach 2 | . 2 Attach 7 | 7 . Detach . | . . Swap 1 | 1 . Drop 4 | . 4 Fire 30 | 19 11 Melee . | . . Ram . | . . Kick . | . . Crush . | . . Escape Stasis . | . . Rewire . | . . Trap . | . . Miscellaneous . | . . Route ------- -11/Scrapyard -10/Materials History --------- Turn | Location | Event 12 | -11/Scrapyard | Discovered new exit (range 15) 121 | -11/Scrapyard | Entered Materials 378 | -10/Materials | Core integrity fell below 50% 388 | -10/Materials | Core integrity fell below 20% 390 | -10/Materials | Destroyed by G-34 Mercenary with Small Laser Last Messages --------------- M006. 00306_ ALERT: Hostiles spotted, dispatching reinforcements to Terminal M005. 00316_ K-01 Serf collects debris. 00345_ Sml. Laser destroyed. 00349_ Flight Unit destroyed. 00351_ R-06 Scavenger inserts Com. Wheel into recycling unit. 00351_ Flight Unit destroyed. 00354_ R-06 Scavenger inserts Lgt. Ion Engine into recycling unit. 00357_ R-06 Scavenger inserts Wheel into recycling unit. 00365_ Lgt. Assault Rifle destroyed. 00370_ K-01 Serf collects debris. 00373_ Triggered Alarm Trap. 00373_ An alarm sounds. 00373_ ALERT: Alarm triggered, dispatching investigation squad. 00375_ U-05 Engineer lays Concrete. 00377_ Ion Engine destroyed. 00377_ Door malfunctions. 00379_ U-05 Engineer lays Concrete. 00389_ Imp. Terrain Scanner destroyed. Map ----- +----------------------------------------------------+ | | | | | | | | | | | | | | | | | | | | | | | | | | | | | | | | | ?????????????????????????????#?##????????????????? | | ??????????????????#####################??????????? | | ??????????????????# [! #??????????# | | ??????????????????# [! s ##?#?#????#? | | ??????????????????# = "" #????######? | | ?????????????????## """ Y" #### #? | | ??????????????????# """ s "" / #? | | ??????????????#??## """ # #? | | ????????#??#??#???# """ g g + #? | | ??????????????????# """ @ g s # #? | | ??????????????????# g # ## | | ??????????????????# g g #?######? | | ??????????????????# g #####???? | | ???????????? ???? ##+#+#######?# | | ??????????? ??? ######### # #? | | ????????????? ?????#### # ## | | ????????????########?????#??## r # #? | | ???????????????????##????????# # #? | | ??????????????????????? ?? ? # # ## | | ???????????????????? ??? ? # # #? | | ????????????????#?????"??""" # #############? | | ?????????????????????????""" # T ##?####?# | | ?????????????????? ???"??""" + #?#???### | | ???????????????????????"?""" # #???##??? | | ???????????????????????"?""" ##^ ^ !! ######### | | ??????????????????#?????? ## ^ ! # # | | ??????????????########??#?#?### ^ ! # """ # | | ????????? ????"" """ #???#????#==^ # """ # | | ??????????????"" """ ##########*= #=""" # | | ???????????# """ """ # #!% # | | ???????????# / +=""" # | | ???????????# # ! #*""" # | | ???????????# # ##+########## # """ # | | ??????????## # # ###?# # # | +----------------------------------------------------+ Best States ------------- Heat Dissipation 25 Energy Generation 10 Energy Capacity 250 Matter Stores 300 Matter Capacity 300 Sight Range 16 Terrain Scan Range 16 Terrain Scan Density 60 Evasion (%) 62 Item Schematics ----------------- None Robot Schematics ------------------ None Fabricated ------------ Nothing Alien Tech Used ----------------- None Achievements -------------- None Challenges ------------ None Game ------ Seed PhasingReactiveLauncher Manual? 0 Play Time 00:12:37 Cumulative 5.9 hours Start 2019.11.23 @ 13:13:58 End 2019.11.23 @ 13:28:44 Sessions 1 Manual Loads 0 Difficulty Rogue Special Mode None Game No. 11 Rogue 11 Adventurer 0 Explorer 0 Win Type - Total 0 Types 0/0/0/0/0/0/0 Lore% 10 Gallery% 9 Achievement% 10 Wizard Run 0 Options --------- ASCII 0 Keyboard 0 Movement Mouse Keybinds 0 Fullscreen 1 Font 18/SmallcapsGlow Map View 76x50 Tactical HUD 1 Map Filters NONE Filters NONE Steam 1 RUN: 9b94a425-15f9-4097-bcbe-9fd19f08bb3b